[Event "Mistrovství Čech mládeže 2023 - HD12"]
[Site "Harrachov, Czech Republic"]
[Date "2023.10.27"]
[Round "8.7"]
[White "Zika, Miroslav"]
[Black "Havlík, David"]
[Result "0-1"]
[TimeControl "90m + 30s"]
[WhiteElo "1199"]
[BlackElo "1331"]

1. c4 {[%clk 01:30:59]} {[%emt 00:00:01]} c6 {[%clk 01:30:23]} {[%emt
00:00:37]} 2. d4 {[%clk 01:31:02]} {[%emt 00:00:26]} d5 {[%clk 01:30:36]}
{[%emt 00:00:17]} 3. Nf3 {[%clk 01:31:09]} {[%emt 00:00:23]} dxc4 {[%clk
01:30:30]} {[%emt 00:00:36]} 4. e4 {[%clk 01:30:46]} {[%emt 00:00:53]} b5
{[%clk 01:29:51]} {[%emt 00:01:10]} 5. Nc3 {[%clk 01:28:59]} {[%emt 00:02:17]}
Nf6 {[%clk 01:25:29]} {[%emt 00:04:51]} 6. e5 {[%clk 01:28:27]} {[%emt
00:01:02]} Nd5 {[%clk 01:25:28]} {[%emt 00:00:31]} 7. Ne4 {[%clk 01:28:05]}
{[%emt 00:00:52]} h6 {[%clk 01:18:47]} {[%emt 00:07:11]} 8. a4 {[%clk
01:25:45]} {[%emt 00:02:51]} Nd7 {[%clk 01:15:17]} {[%emt 00:04:00]} 9. axb5
{[%clk 01:25:40]} {[%emt 00:00:34]} cxb5 {[%clk 01:14:44]} {[%emt 00:01:04]} 10.
b3 {[%clk 01:23:03]} {[%emt 00:03:07]} N7b6 {[%clk 01:13:51]} {[%emt 00:01:22]}
11. bxc4 {[%clk 01:21:17]} {[%emt 00:02:17]} bxc4 {[%clk 01:10:06]} {[%emt
00:04:15]} 12. Bxc4 {[%clk 01:20:14]} {[%emt 00:01:33]} Nxc4 {[%clk 01:08:15]}
{[%emt 00:02:20]} 13. Qa4+ {[%clk 01:19:29]} {[%emt 00:01:15]} Bd7 {[%clk
01:08:19]} {[%emt 00:00:26]} 14. Qxc4 {[%clk 01:19:30]} {[%emt 00:00:29]} e6
{[%clk 01:08:11]} {[%emt 00:00:38]} 15. O-O {[%clk 01:18:56]} {[%emt 00:01:05]}
Be7 {[%clk 01:07:30]} {[%emt 00:01:10]} 16. Ba3 {[%clk 01:17:32]} {[%emt
00:01:54]} O-O {[%clk 01:07:17]} {[%emt 00:00:42]} 17. Bxe7 {[%clk 01:17:28]}
{[%emt 00:00:34]} Nxe7 {[%clk 01:07:27]} {[%emt 00:00:21]} 18. Rfb1 {[%clk
01:07:44]} {[%emt 00:10:14]} Bc6 {[%clk 01:04:21]} {[%emt 00:03:37]} 19. Ned2
{[%clk 01:05:19]} {[%emt 00:02:54]} Bd5 {[%clk 01:03:08]} {[%emt 00:01:43]} 20.
Qd3 {[%clk 01:04:51]} {[%emt 00:00:58]} Nc6 {[%clk 01:01:53]} {[%emt 00:01:45]}
21. Ne4 {[%clk 00:59:45]} {[%emt 00:05:37]} Rb8 {[%clk 00:44:35]} {[%emt
00:17:47]} 22. Nd6 {[%clk 00:49:31]} {[%emt 00:10:44]} Rxb1+ {[%clk 00:43:01]}
{[%emt 00:02:04]} 23. Rxb1 {[%clk 00:49:36]} {[%emt 00:00:26]} Bxf3 {[%clk
00:43:08]} {[%emt 00:00:23]} 24. gxf3 {[%clk 00:49:25]} {[%emt 00:00:40]} Qg5+
{[%clk 00:43:09]} {[%emt 00:00:29]} 25. Kh1 {[%clk 00:48:49]} {[%emt 00:01:06]}
Qg6 {[%clk 00:43:21]} {[%emt 00:00:18]} 26. Ne4 {[%clk 00:46:54]} {[%emt
00:02:25]} Rd8 {[%clk 00:43:15]} {[%emt 00:00:36]} 27. Rg1 {[%clk 00:45:12]}
{[%emt 00:02:12]} Qf5 {[%clk 00:38:21]} {[%emt 00:05:24]} 28. Nf6+ {[%clk
00:43:06]} {[%emt 00:02:37]} Kh8 {[%clk 00:37:52]} {[%emt 00:00:58]} 29. Qe3
{[%clk 00:40:04]} {[%emt 00:03:29]} Ne7 {[%clk 00:27:27]} {[%emt 00:10:58]} 30.
Ng4 {[%clk 00:38:38]} {[%emt 00:01:57]} Kh7 {[%clk 00:24:33]} {[%emt 00:03:24]}
31. Rg3 {[%clk 00:34:56]} {[%emt 00:04:11]} Ng6 {[%clk 00:21:22]} {[%emt
00:03:42]} 32. Qa3 {[%clk 00:29:41]} {[%emt 00:05:44]} Rxd4 {[%clk 00:16:34]}
{[%emt 00:05:18]} 33. Qxa7 {[%clk 00:29:34]} {[%emt 00:00:37]} Qb1+ {[%clk
00:16:38]} {[%emt 00:00:27]} 34. Kg2 {[%clk 00:28:10]} {[%emt 00:01:53]} Nf4#
{[%clk 00:16:57]} 0-1

[Event "Mistrovství Čech mládeže 2023 - HD12"]
[Site "Harrachov, Czech Republic"]
[Date "2023.10.27"]
[Round "8.8"]
[White "Kolář, Edvard"]
[Black "Mrázik, Marek"]
[Result "1-0"]
[TimeControl "90m + 30s"]
[WhiteElo "1473"]
[BlackElo "1159"]

1. e4 {[%clk 01:30:51]} {[%emt 00:00:08]} e5 {[%clk 01:29:54]} {[%emt
00:01:07]} 2. Nf3 {[%clk 01:31:04]} {[%emt 00:00:13]} Nf6 {[%clk 01:28:44]}
{[%emt 00:01:45]} 3. Nxe5 {[%clk 01:30:22]} {[%emt 00:01:11]} d6 {[%clk
01:28:13]} {[%emt 00:01:02]} 4. Nf3 {[%clk 01:30:22]} {[%emt 00:00:30]} Nxe4
{[%clk 01:27:01]} {[%emt 00:01:41]} 5. Bd3 {[%clk 01:27:28]} {[%emt 00:03:24]}
Nf6 {[%clk 01:21:46]} {[%emt 00:05:46]} 6. O-O {[%clk 01:26:30]} {[%emt
00:01:26]} Be7 {[%clk 01:20:39]} {[%emt 00:01:38]} 7. c3 {[%clk 01:23:22]}
{[%emt 00:03:38]} O-O {[%clk 01:20:24]} {[%emt 00:00:45]} 8. Na3 {[%clk
01:19:20]} {[%emt 00:04:32]} Nc6 {[%clk 01:17:34]} {[%emt 00:03:20]} 9. Bb1
{[%clk 01:18:32]} {[%emt 00:01:18]} Bg4 {[%clk 01:16:11]} {[%emt 00:01:54]} 10.
d4 {[%clk 01:16:40]} {[%emt 00:02:21]} Bh5 {[%clk 01:06:45]} {[%emt 00:09:56]}
11. Bg5 {[%clk 00:55:05]} {[%emt 00:22:04]} d5 {[%clk 01:03:47]} {[%emt
00:03:29]} 12. Qd3 {[%clk 00:53:39]} {[%emt 00:01:45]} Bg6 {[%clk 01:03:36]}
{[%emt 00:00:52]} 13. Qe2 {[%clk 00:51:23]} {[%emt 00:02:45]} Ne4 {[%clk
01:00:47]} {[%emt 00:03:20]} 14. Bxe7 {[%clk 00:49:01]} {[%emt 00:02:51]} Qxe7
{[%clk 00:59:54]} {[%emt 00:01:23]} 15. Re1 {[%clk 00:48:23]} {[%emt 00:01:08]}
Qd7 {[%clk 00:44:33]} {[%emt 00:15:52]} 16. Bc2 {[%clk 00:39:54]} {[%emt
00:08:56]} a6 {[%clk 00:43:24]} {[%emt 00:01:42]} 17. Ne5 {[%clk 00:38:02]}
{[%emt 00:02:21]} Nxe5 {[%clk 00:43:21]} {[%emt 00:00:34]} 18. dxe5 {[%clk
00:37:17]} {[%emt 00:01:14]} Rae8 {[%clk 00:42:40]} {[%emt 00:01:12]} 19. f4
{[%clk 00:35:40]} {[%emt 00:02:08]} f5 {[%clk 00:38:11]} {[%emt 00:04:59]} 20.
Rad1 {[%clk 00:33:13]} {[%emt 00:02:51]} Qf7 {[%clk 00:37:03]} {[%emt
00:01:43]} 21. Rxd5 {[%clk 00:31:24]} {[%emt 00:02:20]} c6 {[%clk 00:33:14]}
{[%emt 00:04:19]} 22. Rdd1 {[%clk 00:28:00]} {[%emt 00:03:53]} Qxa2 {[%clk
00:31:37]} {[%emt 00:02:07]} 23. Nc4 {[%clk 00:25:00]} {[%emt 00:03:29]} b5
{[%clk 00:30:45]} {[%emt 00:01:23]} 24. Bd3 {[%clk 00:21:49]} {[%emt 00:03:41]}
Bh5 {[%clk 00:25:36]} {[%emt 00:05:38]} 25. Qxh5 {[%clk 00:20:04]} {[%emt
00:02:13]} bxc4 {[%clk 00:25:58]} {[%emt 00:00:10]} 26. Bxe4 {[%clk 00:20:27]}
{[%emt 00:00:09]} fxe4 {[%clk 00:25:52]} {[%emt 00:00:36]} 27. Rxe4 {[%clk
00:19:09]} {[%emt 00:01:44]} Qxb2 {[%clk 00:25:30]} {[%emt 00:00:55]} 28. e6
{[%clk 00:18:19]} {[%emt 00:01:20]} g6 {[%clk 00:22:28]} {[%emt 00:03:32]} 29.
Qh6 {[%clk 00:14:43]} {[%emt 00:04:06]} Rd8 {[%clk 00:19:27]} {[%emt 00:03:30]}
30. Rde1 {[%clk 00:11:48]} {[%emt 00:03:22]} Rfe8 {[%clk 00:15:39]} {[%emt
00:04:22]} 31. e7 {[%clk 00:10:03]} {[%emt 00:02:15]} Rd7 {[%clk 00:15:45]}
{[%emt 00:00:24]} 32. Re6 {[%clk 00:09:32]} {[%emt 00:01:02]} Qc2 {[%clk
00:14:19]} {[%emt 00:01:55]} 33. Rf6 {[%clk 00:06:48]} {[%emt 00:03:14]} Rdxe7
{[%clk 00:13:20]} {[%emt 00:01:29]} 34. Rxe7 {[%clk 00:06:37]} {[%emt
00:00:41]} Qd1+ {[%clk 00:13:02]} {[%emt 00:00:47]} 35. Kf2 {[%clk 00:06:46]}
{[%emt 00:00:21]} Qd2+ {[%clk 00:12:36]} {[%emt 00:00:57]} 36. Kg3 {[%clk
00:06:18]} {[%emt 00:00:45]} Qxc3+ {[%clk 00:10:54]} {[%emt 00:02:25]} 37. Kg4
{[%clk 00:06:32]} {[%emt 00:00:13]} Qxf6 {[%clk 00:10:30]} {[%emt 00:00:57]} 38.
Rxe8+ {[%clk 00:06:55]} {[%emt 00:00:07]} 1-0

[Event "Mistrovství Čech mládeže 2023 - HD12"]
[Site "Harrachov, Czech Republic"]
[Date "2023.10.27"]
[Round "8.9"]
[White "Bukovskij, Dmitri"]
[Black "Koupil, Štěpán"]
[Result "1-0"]
[TimeControl "90m + 30s"]
[WhiteElo "1391"]
[BlackElo "1467"]

1. d4 {[%clk 01:30:51]} {[%emt 00:00:08]} d5 {[%clk 01:30:52]} {[%emt
00:00:08]} 2. c4 {[%clk 01:30:58]} {[%emt 00:00:24]} e6 {[%clk 01:31:10]}
{[%emt 00:00:11]} 3. cxd5 {[%clk 01:31:25]} {[%emt 00:00:03]} exd5 {[%clk
01:31:29]} {[%emt 00:00:11]} 4. Nc3 {[%clk 01:31:28]} {[%emt 00:00:28]} Nf6
{[%clk 01:31:29]} {[%emt 00:00:29]} 5. Bg5 {[%clk 01:31:12]} {[%emt 00:00:46]}
c6 {[%clk 01:31:06]} {[%emt 00:00:53]} 6. e3 {[%clk 01:30:24]} {[%emt
00:01:18]} Be7 {[%clk 01:30:39]} {[%emt 00:00:58]} 7. Nf3 {[%clk 01:30:02]}
{[%emt 00:00:51]} O-O {[%clk 01:30:20]} {[%emt 00:00:50]} 8. Qc2 {[%clk
01:29:23]} {[%emt 00:01:09]} Be6 {[%clk 01:28:03]} {[%emt 00:02:47]} 9. Bd3
{[%clk 01:27:44]} {[%emt 00:02:08]} Nbd7 {[%clk 01:28:09]} {[%emt 00:00:23]} 10.
Ne5 {[%clk 01:27:39]} {[%emt 00:00:36]} h6 {[%clk 01:27:32]} {[%emt 00:01:07]}
11. Nxd7 {[%clk 01:27:25]} {[%emt 00:00:44]} Qxd7 {[%clk 01:27:11]} {[%emt
00:00:52]} 12. Bxf6 {[%clk 01:27:39]} {[%emt 00:00:16]} Bxf6 {[%clk 01:27:33]}
{[%emt 00:00:07]} 13. O-O {[%clk 01:27:23]} {[%emt 00:00:46]} Rac8 {[%clk
01:26:35]} {[%emt 00:01:29]} 14. f4 {[%clk 01:27:03]} {[%emt 00:00:50]} Qe7
{[%clk 01:25:57]} {[%emt 00:01:06]} 15. Ne2 {[%clk 01:26:20]} {[%emt 00:01:14]}
c5 {[%clk 01:25:03]} {[%emt 00:01:24]} 16. Qa4 {[%clk 01:26:22]} {[%emt
00:00:29]} 1-0

[Event "Mistrovství Čech mládeže 2023 - HD12"]
[Site "Harrachov, Czech Republic"]
[Date "2023.10.27"]
[Round "8.10"]
[White "Ličková, Anna"]
[Black "Kroulík, Štěpán"]
[Result "0-1"]
[TimeControl "90m + 30s"]
[WhiteElo "1366"]
[BlackElo "1454"]

1. e4 {[%clk 01:30:57]} {[%emt 00:00:02]} c5 {[%clk 01:30:51]} {[%emt
00:00:10]} 2. Nf3 {[%clk 01:31:23]} {[%emt 00:00:04]} e6 {[%clk 01:31:06]}
{[%emt 00:00:14]} 3. d4 {[%clk 01:31:04]} {[%emt 00:00:50]} cxd4 {[%clk
01:31:24]} {[%emt 00:00:13]} 4. Nxd4 {[%clk 01:31:10]} {[%emt 00:00:23]} a6
{[%clk 01:31:24]} {[%emt 00:00:30]} 5. Nc3 {[%clk 01:29:19]} {[%emt 00:02:21]}
Qc7 {[%clk 01:31:25]} {[%emt 00:00:28]} 6. Be2 {[%clk 01:25:13]} {[%emt
00:04:37]} Nc6 {[%clk 01:31:19]} {[%emt 00:00:37]} 7. O-O {[%clk 01:22:00]}
{[%emt 00:03:42]} Nf6 {[%clk 01:31:08]} {[%emt 00:00:41]} 8. Be3 {[%clk
01:19:01]} {[%emt 00:03:28]} Bb4 {[%clk 01:29:59]} {[%emt 00:01:40]} 9. Nxc6
{[%clk 01:01:46]} {[%emt 00:17:46]} Qxc6 {[%clk 01:25:31]} {[%emt 00:04:58]} 10.
e5 {[%clk 01:01:04]} {[%emt 00:01:11]} Bxc3 {[%clk 01:24:22]} {[%emt 00:01:38]}
11. bxc3 {[%clk 00:57:41]} {[%emt 00:03:53]} Nd5 {[%clk 01:21:52]} {[%emt
00:03:01]} 12. Bf3 {[%clk 00:52:05]} {[%emt 00:06:07]} Nxe3 {[%clk 01:20:05]}
{[%emt 00:02:16]} 13. Bxc6 {[%clk 00:51:55]} {[%emt 00:00:40]} Nxd1 {[%clk
01:20:23]} {[%emt 00:00:13]} 14. Bf3 {[%clk 00:46:42]} {[%emt 00:05:42]} Nxc3
{[%clk 01:20:13]} {[%emt 00:00:40]} 15. a3 {[%clk 00:45:09]} {[%emt 00:02:03]}
Ke7 {[%clk 01:19:58]} {[%emt 00:00:45]} 16. Rfe1 {[%clk 00:44:46]} {[%emt
00:00:53]} Rb8 {[%clk 01:19:32]} {[%emt 00:00:56]} 17. Re3 {[%clk 00:43:14]}
{[%emt 00:02:01]} Na4 {[%clk 01:19:13]} {[%emt 00:00:50]} 18. Re4 {[%clk
00:43:08]} {[%emt 00:00:36]} b5 {[%clk 01:18:14]} {[%emt 00:01:29]} 19. Rd4
{[%clk 00:42:12]} {[%emt 00:01:26]} Bb7 {[%clk 01:18:06]} {[%emt 00:00:38]} 20.
Rad1 {[%clk 00:41:53]} {[%emt 00:00:48]} Rhd8 {[%clk 01:17:44]} {[%emt
00:00:53]} 21. Bg4 {[%clk 00:40:49]} {[%emt 00:01:34]} f5 {[%clk 01:15:48]}
{[%emt 00:02:26]} 22. exf6+ {[%clk 00:41:04]} {[%emt 00:00:15]} gxf6 {[%clk
01:15:44]} {[%emt 00:00:34]} 23. Re1 {[%clk 00:40:44]} {[%emt 00:00:49]} Rdc8
{[%clk 01:14:21]} {[%emt 00:01:53]} 24. Red1 {[%clk 00:40:45]} {[%emt
00:00:30]} Bd5 {[%clk 01:09:35]} {[%emt 00:05:16]} 25. Re1 {[%clk 00:39:41]}
{[%emt 00:01:34]} Nc3 {[%clk 01:06:06]} {[%emt 00:03:59]} 26. Rd3 {[%clk
00:38:37]} {[%emt 00:01:31]} Rc4 {[%clk 01:01:40]} {[%emt 00:05:00]} 27. h3
{[%clk 00:38:21]} {[%emt 00:00:45]} Rbc8 {[%clk 01:01:27]} {[%emt 00:00:43]} 28.
Ree3 {[%clk 00:35:53]} {[%emt 00:02:58]} Be4 {[%clk 00:55:30]} {[%emt
00:06:27]} 29. Rd2 {[%clk 00:35:51]} {[%emt 00:00:32]} Nd5 {[%clk 00:54:37]}
{[%emt 00:01:22]} 30. Re1 {[%clk 00:34:24]} {[%emt 00:01:57]} f5 {[%clk
00:49:04]} {[%emt 00:06:05]} 31. Bd1 {[%clk 00:33:44]} {[%emt 00:01:09]} Nf4
{[%clk 00:46:42]} {[%emt 00:02:53]} 32. f3 {[%clk 00:33:33]} {[%emt 00:00:41]}
Bxc2 {[%clk 00:45:50]} {[%emt 00:01:21]} 33. Bxc2 {[%clk 00:33:03]} {[%emt
00:01:01]} Rxc2 {[%clk 00:46:03]} {[%emt 00:00:17]} 34. Red1 {[%clk 00:32:29]}
{[%emt 00:01:03]} Rxd2 {[%clk 00:46:09]} {[%emt 00:00:25]} 35. Rxd2 {[%clk
00:32:35]} {[%emt 00:00:24]} Rc1+ {[%clk 00:46:12]} {[%emt 00:00:27]} 36. Kf2
{[%clk 00:31:57]} {[%emt 00:01:07]} Ra1 {[%clk 00:46:23]} {[%emt 00:00:19]} 37.
Ke3 {[%clk 00:31:47]} {[%emt 00:00:40]} e5 {[%clk 00:46:34]} {[%emt 00:00:20]}
38. Kf2 {[%clk 00:31:33]} {[%emt 00:00:42]} Rxa3 {[%clk 00:46:53]} {[%emt
00:00:12]} 39. h4 {[%clk 00:31:44]} {[%emt 00:00:20]} b4 {[%clk 00:46:43]}
{[%emt 00:00:41]} 40. g3 {[%clk 00:32:05]} {[%emt 00:00:08]} Ne6 {[%clk
00:44:18]} {[%emt 00:02:55]} 41. Rb2 {[%clk 00:32:12]} {[%emt 00:00:23]} b3
{[%clk 00:44:22]} {[%emt 00:00:27]} 42. Ke3 {[%clk 00:32:25]} {[%emt 00:00:15]}
a5 {[%clk 00:43:59]} {[%emt 00:00:54]} 43. Kd3 {[%clk 00:32:47]} {[%emt
00:00:08]} a4 {[%clk 00:43:57]} {[%emt 00:00:32]} 44. Kc3 {[%clk 00:33:02]}
{[%emt 00:00:14]} d5 {[%clk 00:43:48]} {[%emt 00:00:40]} 45. Kb4 {[%clk
00:33:20]} {[%emt 00:00:12]} Ra2 {[%clk 00:44:03]} {[%emt 00:00:15]} 46. Rb1
{[%clk 00:33:43]} {[%emt 00:00:07]} Nd4 {[%clk 00:44:10]} {[%emt 00:00:22]} 47.
Kc5 {[%clk 00:33:52]} {[%emt 00:00:20]} Nxf3 {[%clk 00:44:13]} {[%emt
00:00:29]} 48. Kxd5 {[%clk 00:29:26]} {[%emt 00:04:57]} b2 {[%clk 00:44:24]}
{[%emt 00:00:19]} 49. h5 {[%clk 00:29:02]} {[%emt 00:00:53]} Nd2 {[%clk
00:44:39]} {[%emt 00:00:16]} 50. Rxb2 {[%clk 00:29:26]} {[%emt 00:00:05]} Rxb2
{[%clk 00:44:59]} {[%emt 00:00:10]} 51. Kxe5 {[%clk 00:29:47]} {[%emt
00:00:09]} a3 {[%clk 00:45:07]} {[%emt 00:00:23]} 52. Kxf5 {[%clk 00:30:11]}
{[%emt 00:00:06]} a2 {[%clk 00:45:25]} {[%emt 00:00:11]} 53. Kg5 {[%clk
00:30:34]} {[%emt 00:00:08]} a1=Q {[%clk 00:45:36]} {[%emt 00:00:20]} 54. g4
{[%clk 00:30:57]} {[%emt 00:00:07]} Rb5+ {[%clk 00:45:30]} {[%emt 00:00:35]} 55.
Kf4 {[%clk 00:31:05]} {[%emt 00:00:23]} Qd4+ {[%clk 00:45:27]} {[%emt
00:00:32]} 56. Kg3 {[%clk 00:31:27]} {[%emt 00:00:08]} Rb3+ {[%clk 00:45:42]}
{[%emt 00:00:15]} 57. Kg2 {[%clk 00:31:41]} {[%emt 00:00:16]} Ne4 {[%clk
00:45:38]} {[%emt 00:00:34]} 58. g5 {[%clk 00:31:50]} {[%emt 00:00:21]} Qf2+
{[%clk 00:45:54]} {[%emt 00:00:13]} 59. Kh1 {[%clk 00:32:03]} {[%emt 00:00:17]}
Ng3# {[%clk 00:46:18]} {[%emt 00:00:07]} 0-1

[Event "Mistrovství Čech mládeže 2023 - HD12"]
[Site "Harrachov, Czech Republic"]
[Date "2023.10.27"]
[Round "8.11"]
[White "Mauric, Jan"]
[Black "Rendl, Luboš"]
[Result "1-0"]
[TimeControl "90m + 30s"]
[WhiteElo "1260"]
[BlackElo "1420"]

1. e4 {[%clk 01:30:58]} {[%emt 00:00:02]} c6 {[%clk 01:30:30]} {[%emt
00:00:30]} 2. d4 {[%clk 01:31:20]} {[%emt 00:00:08]} d5 {[%clk 01:30:54]}
{[%emt 00:00:06]} 3. exd5 {[%clk 01:31:41]} {[%emt 00:00:08]} cxd5 {[%clk
01:31:07]} {[%emt 00:00:17]} 4. Bd3 {[%clk 01:31:56]} {[%emt 00:00:15]} Nf6
{[%clk 01:31:04]} {[%emt 00:00:33]} 5. Nc3 {[%clk 01:29:37]} {[%emt 00:02:49]}
Nc6 {[%clk 01:31:12]} {[%emt 00:00:23]} 6. Nge2 {[%clk 01:26:56]} {[%emt
00:03:11]} Bg4 {[%clk 01:30:17]} {[%emt 00:01:24]} 7. f3 {[%clk 01:26:51]}
{[%emt 00:00:36]} Bh5 {[%clk 01:30:28]} {[%emt 00:00:17]} 8. Bf4 {[%clk
01:26:20]} {[%emt 00:01:02]} a6 {[%clk 01:28:51]} {[%emt 00:02:08]} 9. O-O
{[%clk 01:20:09]} {[%emt 00:06:41]} e6 {[%clk 01:26:20]} {[%emt 00:03:00]} 10.
a3 {[%clk 01:16:55]} {[%emt 00:03:45]} Bg6 {[%clk 01:25:26]} {[%emt 00:01:23]}
11. Rb1 {[%clk 01:14:02]} {[%emt 00:03:23]} Bd6 {[%clk 01:23:40]} {[%emt
00:02:16]} 12. Bxd6 {[%clk 01:12:45]} {[%emt 00:01:48]} Qxd6 {[%clk 01:23:58]}
{[%emt 00:00:12]} 13. b4 {[%clk 01:07:33]} {[%emt 00:05:42]} O-O {[%clk
01:23:24]} {[%emt 00:01:03]} 14. Bxg6 {[%clk 01:05:04]} {[%emt 00:03:00]} hxg6
{[%clk 01:23:24]} {[%emt 00:00:29]} 15. Ng3 {[%clk 01:05:00]} {[%emt 00:00:35]}
Qf4 {[%clk 01:22:36]} {[%emt 00:01:14]} 16. Nce2 {[%clk 01:04:52]} {[%emt
00:00:42]} Qe3+ {[%clk 01:22:43]} {[%emt 00:00:23]} 17. Kh1 {[%clk 01:04:26]}
{[%emt 00:00:55]} Qxa3 {[%clk 01:14:59]} {[%emt 00:08:13]} 18. Rb3 {[%clk
01:04:48]} {[%emt 00:00:10]} Qxb3 {[%clk 01:08:42]} {[%emt 00:06:47]} 19. cxb3
{[%clk 01:05:13]} {[%emt 00:00:05]} Nxb4 {[%clk 01:08:49]} {[%emt 00:00:23]} 20.
Qd2 {[%clk 01:04:47]} {[%emt 00:00:56]} a5 {[%clk 01:08:19]} {[%emt 00:00:59]}
21. h3 {[%clk 01:03:57]} {[%emt 00:01:20]} Rfc8 {[%clk 01:08:34]} {[%emt
00:00:16]} 22. Rc1 {[%clk 01:03:06]} {[%emt 00:01:21]} Kf8 {[%clk 01:08:07]}
{[%emt 00:00:57]} 23. Rxc8+ {[%clk 00:55:11]} {[%emt 00:08:25]} Rxc8 {[%clk
01:08:30]} {[%emt 00:00:07]} 24. Nc3 {[%clk 00:55:32]} {[%emt 00:00:09]} Nd7
{[%clk 01:08:19]} {[%emt 00:00:41]} 25. Nge2 {[%clk 00:55:17]} {[%emt
00:00:45]} Rc6 {[%clk 01:06:54]} {[%emt 00:01:55]} 26. Qb2 {[%clk 00:53:46]}
{[%emt 00:02:01]} b6 {[%clk 01:06:36]} {[%emt 00:00:48]} 27. Qa3 {[%clk
00:52:52]} {[%emt 00:01:24]} Ke8 {[%clk 01:05:53]} {[%emt 00:01:13]} 28. Qa4
{[%clk 00:51:30]} {[%emt 00:01:51]} Nb8 {[%clk 01:05:43]} {[%emt 00:00:41]} 29.
Na2 {[%clk 00:49:54]} {[%emt 00:02:07]} Nd3 {[%clk 01:03:42]} {[%emt 00:02:28]}
30. b4 {[%clk 00:49:29]} {[%emt 00:00:57]} axb4 {[%clk 01:03:42]} {[%emt
00:00:30]} 31. Nxb4 {[%clk 00:49:48]} {[%emt 00:00:11]} Nxb4 {[%clk 01:03:27]}
{[%emt 00:00:45]} 32. Qxb4 {[%clk 00:50:13]} {[%emt 00:00:05]} Nd7 {[%clk
01:02:43]} {[%emt 00:01:13]} 33. Qa4 {[%clk 00:49:02]} {[%emt 00:01:42]} Rc7
{[%clk 01:02:59]} {[%emt 00:00:14]} 34. Qa8+ {[%clk 00:48:57]} {[%emt
00:00:35]} Ke7 {[%clk 01:03:17]} {[%emt 00:00:11]} 35. Qh8 {[%clk 00:49:07]}
{[%emt 00:00:20]} Nf6 {[%clk 01:02:30]} {[%emt 00:01:17]} 36. Qxg7 {[%clk
00:49:05]} {[%emt 00:00:33]} Nh5 {[%clk 01:02:50]} {[%emt 00:00:09]} 37. Qe5
{[%clk 00:48:28]} {[%emt 00:01:08]} Rc2 {[%clk 01:03:06]} {[%emt 00:00:13]} 38.
Kg1 {[%clk 00:44:51]} {[%emt 00:04:08]} b5 {[%clk 01:03:16]} {[%emt 00:00:20]}
39. Kf1 {[%clk 00:42:30]} {[%emt 00:02:50]} b4 {[%clk 01:03:06]} {[%emt
00:00:40]} 40. Qb8 {[%clk 00:41:54]} {[%emt 00:01:07]} Rb2 {[%clk 01:03:10]}
{[%emt 00:00:26]} 41. Ke1 {[%clk 00:41:48]} {[%emt 00:00:36]} Ng7 {[%clk
01:02:43]} {[%emt 00:00:56]} 42. Qa7+ {[%clk 00:39:23]} {[%emt 00:02:56]} Kf6
{[%clk 01:02:49]} {[%emt 00:00:23]} 43. Qa1 {[%clk 00:39:45]} {[%emt 00:00:09]}
Rb3 {[%clk 01:03:09]} {[%emt 00:00:09]} 44. Qa2 {[%clk 00:38:07]} {[%emt
00:02:09]} Re3 {[%clk 01:02:23]} {[%emt 00:01:16]} 45. Qb2 {[%clk 00:38:05]}
{[%emt 00:00:32]} Nh5 {[%clk 01:01:39]} {[%emt 00:01:13]} 46. Kf2 {[%emt
00:01:08]} Ra3 {[%clk 01:01:39]} {[%emt 00:00:28]} 47. Qxb4 {[%clk 00:37:52]}
{[%emt 00:00:07]} Ra2 {[%clk 01:02:05]} {[%emt 00:00:04]} 48. Qb3 {[%clk
00:37:57]} {[%emt 00:00:26]} Rd2 {[%clk 01:02:21]} {[%emt 00:00:13]} 49. Ke3
{[%clk 00:37:09]} {[%emt 00:01:18]} Rxe2+ {[%clk 01:02:23]} {[%emt 00:00:28]}
50. Kxe2 {[%clk 00:37:34]} {[%emt 00:00:06]} Nf4+ {[%clk 01:02:48]} {[%emt
00:00:04]} 51. Kf2 {[%clk 00:37:12]} {[%emt 00:00:52]} Nxh3+ {[%clk 01:02:10]}
{[%emt 00:01:08]} 52. gxh3 {[%clk 00:37:26]} {[%emt 00:00:16]} 1-0